fUSD/lending_fUSD_20241104
["ID","MTS","AMOUNT","RATE_DAILY","PERIOD"]
[341275403,1730739032031,-613.17,0.00017969,2]
[341275404,1730739032040,-150.99,0.00018318,2]
[341275405,1730739032049,-866.0,0.00018319,2]
[341275406,1730739032059,-2853.03,0.00019079,2]
[341275407,1730739032069,-362.0,0.00019599,2]
[341275408,1730739032080,-239.75827934,0.0002,2]
[341275409,1730739032090,-613.17,0.00020232,2]
[341275410,1730739032268,-250.0,0.00021,2]
[341275411,1730739032277,-250.0,0.0002104,2]
[341275412,1730739032286,-613.17,0.00022496,2]
[341275413,1730739032295,-625.0,0.00022637,2]
[341275414,1730739032304,-625.0,0.00022637,2]
[341275415,1730739032313,-300.0,0.00023,2]
[341275416,1730739032322,-34074.95096446,0.00023922,2]
[341275417,1730739032334,-206.27,0.00024593,2]
[341275418,1730739032343,-613.17,0.0002476,2]
[341275419,1730739032351,-4949.43,0.00026363,2]
[341275420,1730739032360,-406.85,0.00026978,2]
[341275421,1730739032369,-406.85,0.00026992,2]
[341275422,1730739032378,-406.85,0.00027006,2]
[341275423,1730739032387,-406.85,0.00027021,2]
[341275424,1730739032396,-613.17,0.00027024,2]
[341275425,1730739032405,-406.85,0.00027035,2]
[341275426,1730739032414,-406.85,0.00027049,2]
[341275427,1730739032423,-406.85,0.00027063,2]
[341275428,1730739032432,-406.85,0.00027077,2]
[341275429,1730739032443,-406.85,0.00027091,2]
[341275430,1730739032452,-406.85,0.00027106,2]
[341275431,1730739032461,-406.85,0.0002712,2]
[341275432,1730739032470,-406.85,0.00027134,2]
[341275433,1730739032479,-406.85,0.00027148,2]
[341275434,1730739032488,-406.85,0.00027162,2]
[341275435,1730739032497,-406.85,0.00027177,2]
[341275436,1730739032506,-406.85,0.00027191,2]
[341275437,1730739032515,-406.85,0.00027205,2]
[341275438,1730739032524,-406.85,0.00027219,2]
[341275439,1730739032533,-406.85,0.00027233,2]
[341275440,1730739032542,-406.85,0.00027248,2]
[341275441,1730739032551,-206.27,0.00027359,2]
[341275442,1730739032560,-150.0,0.00027397,7]
[341275443,1730739032570,-2457.39,0.00027417,2]
[341275444,1730739032581,-167.02,0.00027514,2]
[341275445,1730739032590,-163.15,0.00027536,2]
[341275446,1730739032599,-195.93,0.00028016,2]
[341275447,1730739032608,-250.0,0.00028106,2]
[341275448,1730739032617,-295.28,0.00028189,2]
[341275449,1730739032626,-152.84,0.0002821,30]
[341275450,1730739032635,-1000.0,0.00028265,2]
[341275451,1730739032644,-180.51,0.00028285,120]
[341275452,1730739032653,-201.97,0.00028297,2]
[341275453,1730739032662,-151.23,0.00029178,2]
[341275454,1730739032672,-613.17,0.00029288,2]
[341275455,1730739032685,-180.0,0.00029478,120]
[341275456,1730739032694,-559.69,0.00029543,2]
[341275457,1730739032704,-2000.0,0.0003,14]
[341275458,1730739032714,-156.63276065,0.0003,2]
[341275459,1730739032723,-2390.82225,0.00030186,2]
[341275460,1730739032732,-275.8385,0.00030186,2]
[341275461,1730739032741,-559.69,0.00031021,2]
[341275462,1730739032750,-152.84,0.00031098,30]
[341275463,1730739032761,-151.23,0.00031242,2]
[341275464,1730739032771,-613.17,0.00031552,2]
[341275465,1730739032782,-1000.0,0.00031798,2]
[341275466,1730739032791,-151.0,0.000319,5]
[341275467,1730739032801,-166.31,0.00032154,2]
[341275468,1730739032810,-559.69,0.00032498,2]
[341275469,1730739032819,-500.0,0.00032876,2]
[341275470,1730739032828,-500.0,0.00032876,2]
[341275471,1730739032838,-500.0,0.00032876,2]
[341275472,1730739032848,-500.0,0.00032876,2]
[341275473,1730739032857,-500.0,0.00032876,2]
[341275474,1730739032866,-500.0,0.00032876,2]
[341275475,1730739032874,-501.27,0.00032876,2]
[341275476,1730739032884,-500.0,0.00032876,2]
[341275477,1730739032892,-500.0,0.00032876,2]
[341275478,1730739032902,-500.0,0.00032876,2]
[341275479,1730739032911,-1107.99,0.00032876,2]
[341275480,1730739032920,-520.92377539,0.00032876,2]
[341275481,1730739032929,-500.0,0.00032876,2]
[341275482,1730739032939,-531.37150002,0.00032876,2]
[341275483,1730739032948,-500.0,0.00032876,2]
[341275484,1730739032957,-500.0,0.00032876,2]
[341275485,1730739032967,-500.0,0.00032876,2]
[341275486,1730739032976,-500.0,0.00032876,2]
[341275487,1730739032985,-500.0,0.00032876,2]
[341275488,1730739032994,-500.0,0.00032876,2]
[341275489,1730739033003,-500.0,0.00032876,2]
[341275490,1730739033012,-500.0,0.00032876,2]
[341275491,1730739033022,-515.73966093,0.00032876,2]
[341275492,1730739033031,-518.02748342,0.00032876,2]
[341275493,1730739033040,-500.0,0.00032876,2]
[341275494,1730739033049,-500.0,0.00032876,2]
[341275495,1730739033058,-500.0,0.00032876,2]
[341275496,1730739033067,-500.0,0.00032876,2]
[341275497,1730739033077,-500.0,0.00032876,2]
[341275498,1730739033089,-500.0,0.00032876,2]
[341275499,1730739033099,-1077.23,0.00032876,2]
[341275500,1730739033108,-500.0,0.00032876,2]
[341275501,1730739033118,-500.0,0.00032876,2]
[341275502,1730739033128,-500.0,0.00032876,2]
[341275503,1730739033138,-629.15545485,0.00032876,2]
[341275504,1730739033147,-500.0,0.00032876,2]
[341275505,1730739033156,-42.70611676,0.00032876,2]
[341275506,1730739033178,-457.29388324,0.00032876,2]
[341275507,1730739033187,-500.0,0.00032876,2]
[341275508,1730739033197,-500.0,0.00032876,2]
[341275509,1730739033206,-500.0,0.00032876,2]
[341275510,1730739033216,-500.0,0.00032876,2]
[341275511,1730739033225,-500.0,0.00032876,2]
[341275512,1730739033235,-500.0,0.00032876,2]
[341275513,1730739033243,-500.0,0.00032876,2]
[341275514,1730739033253,-500.0,0.00032876,2]
[341275515,1730739033262,-310.71587372,0.00032876,2]
[341275516,1730739033271,-500.0,0.00032876,2]
[341275517,1730739033280,-500.0,0.00032876,2]
[341275518,1730739033290,-500.0,0.00032876,2]
[341275519,1730739033299,-500.0,0.00032876,2]
[341275520,1730739033309,-500.0,0.00032876,2]
[341275521,1730739033318,-500.0,0.00032876,2]
[341275522,1730739033327,-228.67260289,0.00032876,2]
[341275541,1730739037979,-271.32739711,0.00032876,2]
[341275542,1730739037989,-500.0,0.00032876,2]
[341275543,1730739037999,-500.0,0.00032876,2]
[341275544,1730739038008,-500.0,0.00032876,2]
[341275545,1730739038017,-500.0,0.00032876,2]
[341275546,1730739038027,-500.0,0.00032876,2]
[341275547,1730739038036,-500.0,0.00032876,2]
[341275548,1730739038045,-500.0,0.00032876,2]
[341275549,1730739038054,-500.0,0.00032876,2]
[341275550,1730739038063,-500.0,0.00032876,2]
[341275551,1730739038072,-500.0,0.00032876,2]
[341275552,1730739038081,-571.16756911,0.00032876,2]
[341275553,1730739038092,-500.0,0.00032876,2]
[341275554,1730739038101,-500.0,0.00032876,2]
[341275555,1730739038110,-500.0,0.00032876,2]
[341275556,1730739038119,-482.48325011,0.00032876,2]
[341275557,1730739038129,-500.0,0.00032876,2]
[341275558,1730739038138,-500.0,0.00032876,2]
[341275559,1730739038147,-619.66,0.00032876,2]
[341275560,1730739038156,-500.0,0.00032876,2]
[341275561,1730739038166,-500.0,0.00032876,2]
[341275562,1730739038175,-500.0,0.00032876,2]
[341275563,1730739038185,-520.80323773,0.00032876,2]
[341275564,1730739038194,-500.0,0.00032876,2]
[341275565,1730739038205,-500.0,0.00032876,2]
[341275566,1730739038215,-500.0,0.00032876,2]
[341275567,1730739038225,-500.0,0.00032876,2]
[341275568,1730739038235,-500.0,0.00032876,2]
[341275569,1730739038244,-500.0,0.00032876,2]
[341275570,1730739038253,-500.0,0.00032876,2]
[341275571,1730739038263,-509.81154594,0.00032876,2]
[341275572,1730739038272,-500.0,0.00032876,2]
[341275573,1730739038281,-500.0,0.00032876,2]
[341275574,1730739038291,-500.0,0.00032876,2]
[341275575,1730739038300,-500.0,0.00032876,2]
[341275576,1730739038309,-500.0,0.00032876,2]
[341275577,1730739038318,-500.0,0.00032876,2]
[341275578,1730739038327,-500.0,0.00032876,2]
[341275579,1730739038338,-204.73755448,0.00032876,2]
[341275580,1730739038356,-295.26244552,0.00032876,2]
[341275581,1730739038367,-500.0,0.00032876,2]
[341275582,1730739038376,-374.2915545,0.00032876,2]
[341275583,1730739038387,-125.7084455,0.00032876,2]
[341275584,1730739038396,-580.4,0.00032876,2]
[341275585,1730739038406,-500.0,0.00032876,2]
[341275586,1730739038415,-500.0,0.00032876,2]
[341275587,1730739038424,-500.0,0.00032876,2]
[341275588,1730739038433,-923.88,0.00032876,2]
[341275589,1730739038442,-500.0,0.00032876,2]
[341275590,1730739038451,-500.0,0.00032876,2]
[341275591,1730739038461,-500.0,0.0003315,2]
[341275592,1730739038470,-294.49876202,0.0003315,2]
[341275595,1730739038481,-205.50123798,0.0003315,2]
[341275597,1730739038490,-501.27,0.0003315,2]
[341275598,1730739038500,-1107.99,0.0003315,2]
[341275600,1730739038509,-500.0,0.0003315,2]
[341275602,1730739038518,-500.0,0.0003315,2]
[341275604,1730739038527,-159.98970082,0.0003315,2]
[341275606,1730739038537,-500.0,0.0003315,2]
[341275609,1730739038548,-500.0,0.0003315,2]
[341275610,1730739038556,-500.0,0.0003315,2]
[341275613,1730739038566,-500.0,0.0003315,2]
[341275614,1730739038578,-1077.23,0.0003315,2]
[341275616,1730739038588,-500.0,0.0003315,2]
[341275618,1730739038597,-256.98145038,0.0003315,2]
[341275697,1730739040084,-402.71009329,0.00032876,2]
[341275698,1730739040098,-97.28990671,0.00032876,2]
[341275699,1730739040107,-169.48139905,0.00032876,2]
[341275700,1730739040118,-404.39871674,0.00032876,2]
[341275701,1730739040128,-243.01854962,0.0003315,2]
[341275702,1730739040137,-500.0,0.0003315,2]
[341275703,1730739040146,-500.0,0.0003315,2]
[341275704,1730739040156,-500.0,0.0003315,2]
[341275705,1730739040165,-500.0,0.0003315,2]
[341275706,1730739040174,-271.0419667,0.0003315,2]
[341275707,1730739040195,-228.9580333,0.0003315,2]
[341275708,1730739040204,-500.0,0.0003315,2]
[341275709,1730739040214,-500.0,0.0003315,2]
[341275710,1730739040224,-500.0,0.0003315,2]
[341275711,1730739040233,-500.0,0.0003315,2]
[341275712,1730739040243,-329.1224917,0.0003315,2]
[341275713,1730739040254,-205.2175083,0.0003315,2]
[341275714,1730739040264,-212.41710426,0.0003315,2]
[341276016,1730739043319,-500.0,0.00032876,2]
[341276017,1730739043329,-368.06618132,0.00032876,2]
[341276133,1730739045838,-1623.406009,0.00032776,15]
[341276134,1730739045850,-1631.93381868,0.00032876,2]
[341276135,1730739045860,-500.0,0.00032876,2]
[341276136,1730739045870,-272.12170754,0.00032876,2]
[341276137,1730739045880,-504.63538047,0.0003305,5]
[341276138,1730739045891,-287.58289574,0.0003315,2]
[341276139,1730739045902,-602.89,0.0003315,2]
[341276140,1730739045911,-500.0,0.0003315,2]
[341276141,1730739045922,-321.04921838,0.0003315,2]
[341276142,1730739045931,-531.32141009,0.0003315,2]
[341276143,1730739045941,-479.69648049,0.0003315,2]
[341276144,1730739045951,-500.0,0.0003315,2]
[341276145,1730739045961,-619.66,0.0003315,2]
[341276146,1730739045970,-636.78376946,0.0003315,2]
[341276147,1730739045980,-500.0,0.0003315,2]
[341276148,1730739045989,-500.0,0.0003315,2]
[341276149,1730739045999,-500.0,0.0003315,2]
[341276150,1730739046009,-500.0,0.0003315,2]
[341276151,1730739046019,-500.0,0.0003315,2]
[341276152,1730739046028,-500.0,0.0003315,2]
[341276153,1730739046038,-500.0,0.0003315,2]
[341276154,1730739046047,-500.0,0.0003315,2]
[341276155,1730739046057,-500.0,0.0003315,2]
[341276156,1730739046067,-500.0,0.0003315,2]
[341276157,1730739046076,-500.0,0.0003315,2]
[341276158,1730739046086,-576.28,0.0003315,2]
[341276159,1730739046097,-500.0,0.0003315,2]
[341276160,1730739046106,-500.0,0.0003315,2]
[341276161,1730739046116,-512.09050041,0.0003315,2]
[341276162,1730739046126,-383.04880974,0.0003315,2]
[341276163,1730739046300,-500.0,0.00032876,2]
[341276164,1730739046309,-500.0,0.00032876,2]
[341276165,1730739046319,-197.35119026,0.0003315,2]
[341276167,1730739046329,-504.37491377,0.0003315,2]
[341276170,1730739046339,-500.0,0.0003315,2]
[341276173,1730739046351,-500.0,0.0003315,2]
[341276174,1730739046361,-923.88,0.0003315,2]
[341276175,1730739046370,-500.0,0.0003315,2]
[341276176,1730739046379,-500.0,0.0003315,2]
[341276177,1730739046389,-500.0,0.0003315,2]
[341276178,1730739046399,-500.0,0.0003315,2]
[341276179,1730739046408,-451.21659355,0.0003315,2]
[341276180,1730739046418,-500.0,0.0003315,2]
[341276181,1730739046428,-151.23,0.00033305,2]
[341276182,1730739046438,-500.0,0.00033423,7]
[341276183,1730739046448,-500.0,0.00033423,7]
[341276184,1730739046458,-500.0,0.00033423,7]
[341276185,1730739046468,-500.0,0.00033423,7]
[341276186,1730739046477,-500.0,0.00033423,7]
[341276187,1730739046487,-385.20704106,0.00033423,7]
[341276188,1730739046496,-500.0,0.00033424,2]
[341276189,1730739046505,-500.0,0.00033424,2]
[341276190,1730739046514,-501.27,0.00033424,2]
[341276191,1730739046523,-1107.99,0.00033424,2]
[341276192,1730739046533,-500.0,0.00033424,2]
[341276193,1730739046543,-1077.23,0.00033424,2]
[341276194,1730739046552,-500.0,0.00033424,2]
[341276195,1730739046562,-500.0,0.00033424,2]
[341276196,1730739046572,-538.53430405,0.00033424,2]
[341276197,1730739046582,-500.0,0.00033424,2]
[341276198,1730739046591,-500.0,0.00033424,2]
[341276199,1730739046606,-500.0,0.00033424,2]
[341276200,1730739046620,-500.0,0.00033424,2]
[341276201,1730739046630,-500.0,0.00033424,2]
[341276202,1730739046639,-619.66,0.00033424,2]
[341276203,1730739046649,-500.0,0.00033424,2]
[341276204,1730739046658,-500.0,0.00033424,2]
[341276205,1730739046668,-500.0,0.00033424,2]
[341276206,1730739046678,-500.0,0.00033424,2]
[341276207,1730739046691,-529.86997907,0.00033424,2]
[341276208,1730739046700,-500.0,0.00033424,2]
[341276209,1730739046710,-500.0,0.00033424,2]
[341276210,1730739046719,-500.0,0.00033424,2]
[341276211,1730739046731,-580.4,0.00033424,2]
[341276212,1730739046740,-500.0,0.00033424,2]
[341276213,1730739046750,-923.88,0.00033424,2]
[341276214,1730739046763,-500.0,0.00033424,2]
[341276215,1730739046773,-500.0,0.00033424,2]
[341276216,1730739046783,-533.61460503,0.00033424,2]
[341276217,1730739046792,-500.0,0.00033698,2]
[341276218,1730739046802,-531.73,0.00033698,2]
[341276219,1730739046812,-501.27,0.00033698,2]
[341276220,1730739046822,-1107.99,0.00033698,2]
[341276221,1730739046832,-1077.23,0.00033698,2]
[341276222,1730739046842,-500.0,0.00033698,2]
[341276223,1730739046854,-500.0,0.00033698,2]
[341276224,1730739046864,-500.0,0.00033698,2]
[341276225,1730739046874,-500.0,0.00033698,2]
[341276226,1730739046884,-177.88,0.00033698,2]
[341276227,1730739046894,-500.0,0.00033698,2]
[341276228,1730739046904,-619.66,0.00033698,2]
[341276229,1730739046914,-518.94501815,0.00033698,2]
[341276230,1730739046924,-500.0,0.00033698,2]
[341276231,1730739046934,-500.0,0.00033698,2]
[341276232,1730739046943,-500.0,0.00033698,2]
[341276233,1730739046953,-500.0,0.00033698,2]
[341276234,1730739046962,-580.4,0.00033698,2]
[341276235,1730739046972,-500.0,0.00033698,2]
[341276236,1730739046981,-923.88,0.00033698,2]
[341276237,1730739046990,-500.0,0.00033698,2]
[341276238,1730739047000,-518.18136992,0.00033698,2]
[341276239,1730739047010,-306.644,0.00033716,2]
[341276240,1730739047019,-156.646,0.00033716,2]
[341276241,1730739047029,-150.3,0.00033716,2]
[341276242,1730739047038,-613.17,0.00033816,2]
[341276243,1730739047047,-500.0,0.00033972,2]
[341276244,1730739047057,-501.27,0.00033972,2]
[341276245,1730739047066,-1107.99,0.00033972,2]
[341276246,1730739047075,-1077.23,0.00033972,2]
[341276247,1730739047085,-500.0,0.00033972,2]
[341276248,1730739047096,-500.0,0.00033972,2]
[341276249,1730739047105,-500.0,0.00033972,2]
[341276250,1730739047115,-257.2,0.00033972,2]
[341276251,1730739047124,-500.0,0.00033972,2]
[341276252,1730739047134,-619.66,0.00033972,2]
[341276253,1730739047143,-160.13084765,0.00033972,2]
[341276254,1730739047152,-500.0,0.00033972,2]
[341276255,1730739047161,-500.0,0.00033972,2]
[341276256,1730739047171,-500.0,0.00033972,2]
[341276257,1730739047179,-580.4,0.00033972,2]
[341276258,1730739047189,-500.0,0.00033972,2]
[341276259,1730739047198,-923.88,0.00033972,2]
[341276260,1730739047207,-500.0,0.00033972,2]
[341276261,1730739047216,-559.69,0.00033975,2]
[341276262,1730739047225,-152.84,0.00033986,120]
[341276263,1730739047234,-381.239436,0.00034,30]
[341276264,1730739047243,-500.0,0.00034246,2]
[341276265,1730739047253,-501.27,0.00034246,2]
[341276266,1730739047261,-1107.99,0.00034246,2]
[341276267,1730739047271,-1077.23,0.00034246,2]
[341276268,1730739047280,-183.73904265,0.00034246,2]
[341276269,1730739047289,-500.0,0.00034246,2]
[341276270,1730739047298,-500.0,0.00034246,2]
[341276271,1730739047307,-500.0,0.00034246,2]
[341276272,1730739047316,-619.66,0.00034246,2]
[341276273,1730739047326,-500.0,0.00034246,2]
[341276274,1730739047335,-500.0,0.00034246,2]
[341276275,1730739047346,-500.0,0.00034246,2]
[341276276,1730739047355,-580.4,0.00034246,2]
[341276277,1730739047364,-923.88,0.00034246,2]
[341276278,1730739047373,-500.0,0.00034246,2]
[341276279,1730739047382,-500.0,0.00034246,2]
[341276280,1730739047391,-500.0,0.0003452,2]
[341276281,1730739047399,-501.27,0.0003452,2]
[341276282,1730739047408,-1107.99,0.0003452,2]
[341276283,1730739047417,-1077.23,0.0003452,2]
[341276284,1730739047427,-500.0,0.0003452,2]
[341276285,1730739047437,-500.0,0.0003452,2]
[341276286,1730739047446,-500.0,0.0003452,2]
[341276287,1730739047456,-619.66,0.0003452,2]
[341276288,1730739047465,-500.0,0.0003452,2]
[341276289,1730739047474,-500.0,0.0003452,2]
[341276290,1730739047482,-500.0,0.0003452,2]
[341276291,1730739047491,-580.4,0.0003452,2]
[341276292,1730739047500,-923.88,0.0003452,2]
[341276293,1730739047509,-500.0,0.0003452,2]
[341276294,1730739047518,-232.34102602,0.0003452,2]
[341276295,1730739047527,-500.0,0.00034794,2]
[341276296,1730739047537,-501.27,0.00034794,2]
[341276297,1730739047546,-1107.99,0.00034794,2]
[341276298,1730739047556,-1077.23,0.00034794,2]
[341276299,1730739047565,-500.0,0.00034794,2]
[341276300,1730739047574,-500.0,0.00034794,2]
[341276301,1730739047583,-500.0,0.00034794,2]
[341276302,1730739047592,-619.66,0.00034794,2]
[341276303,1730739047602,-500.0,0.00034794,2]
[341276304,1730739047611,-500.0,0.00034794,2]
[341276305,1730739047620,-500.0,0.00034794,2]
[341276306,1730739047629,-580.4,0.00034794,2]
[341276307,1730739047639,-923.88,0.00034794,2]
[341276308,1730739047648,-500.0,0.00034794,2]
[341276309,1730739047657,-1014.53802549,0.00035,14]
[341276310,1730739047666,-364.99124972,0.00035,2]
[341276311,1730739047677,-614.7268045,0.00035068,2]
[341276312,1730739047687,-501.27,0.00035068,2]
[341276313,1730739047695,-1107.99,0.00035068,2]
[341276314,1730739047705,-1077.23,0.00035068,2]
[341276315,1730739047714,-500.0,0.00035068,2]
[341276316,1730739047725,-500.0,0.00035068,2]
[341276317,1730739047734,-619.66,0.00035068,2]
[341276318,1730739047743,-500.0,0.00035068,2]
[341276319,1730739047753,-500.0,0.00035068,2]
[341276320,1730739047762,-500.0,0.00035068,2]
[341276321,1730739047771,-580.4,0.00035068,2]
[341276322,1730739047780,-923.88,0.00035068,2]
[341276323,1730739047789,-500.0,0.00035068,2]
[341276324,1730739047798,-1000.0,0.00035331,2]
[341276325,1730739047807,-501.27,0.00035342,2]
[341276326,1730739047816,-1107.99,0.00035342,2]
[341276327,1730739047826,-1077.23,0.00035342,2]
[341276328,1730739047835,-500.0,0.00035342,2]
[341276329,1730739047845,-500.0,0.00035342,2]
[341276330,1730739047854,-619.66,0.00035342,2]
[341276331,1730739047864,-500.0,0.00035342,2]
[341276332,1730739047873,-500.0,0.00035342,2]
[341276333,1730739047882,-500.0,0.00035342,2]
[341276334,1730739047891,-580.4,0.00035342,2]
[341276335,1730739047900,-923.88,0.00035342,2]
[341276336,1730739047909,-500.0,0.00035342,2]
[341276337,1730739047918,-180.51,0.00035357,120]
[341276338,1730739047927,-183.0,0.00035369,5]
[341276339,1730739047937,-151.23,0.00035369,2]
[341276340,1730739047946,-11531.93981856,0.0003538,2]
[341276341,1730739047955,-6287.8716,0.00035416,2]
[341276342,1730739047965,-5291.7622,0.00035416,2]
[341276343,1730739047974,-361.74271195,0.00035416,2]
[341276344,1730739047983,-559.69,0.00035452,2]
[341276345,1730739047993,-500.0,0.00035515,2]
[341276346,1730739048002,-1354.27,0.00035515,2]
[341276347,1730739048011,-500.0,0.00035515,2]
[341276348,1730739048020,-500.0,0.00035515,2]
[341276349,1730739048030,-500.0,0.00035515,2]
[341276350,1730739048040,-500.0,0.00035515,2]
[341276351,1730739048049,-840.87,0.00035515,2]
[341276352,1730739048058,-500.0,0.00035515,2]
[341276353,1730739048068,-500.0,0.00035515,2]
[341276354,1730739048077,-500.0,0.00035515,2]
[341276355,1730739048087,-500.0,0.00035515,2]
[341276356,1730739048097,-1000.0,0.00035516,2]
[341276357,1730739048106,-37818.9099,0.00035516,2]
[341276358,1730739048115,-10151.00387113,0.00035516,2]
[341276359,1730739048129,-4000.0,0.00035516,2]
[341276369,1730739493688,154.19,0.00015342,2]
[341276414,1730740162940,157.06,0.00015342,2]
[341276429,1730740231966,-403.87586623,0.0001726,2]
[341276430,1730740231975,-54.78413377,0.00018107,2]
[341276431,1730740231987,-95.21586623,0.00018107,2]
[341276432,1730740231996,-300.0,0.00019725,2]
[341276433,1730740232005,-136.83211009,0.000209,2]
[341276434,1730740232027,-124.35867599,0.000209,2]
[341276435,1730740232036,-146.21427282,0.00021,2]
[341276436,1730740232152,-103.78572718,0.00021,2]
[341276437,1730740232162,-37073.39235766,0.00021,2]
[341276438,1730740232172,-2336.0,0.000254,2]
[341276439,1730740232182,-261.19078607,0.000254,2]
[341276440,1730740232191,-400.08,0.0002941,2]
[341276441,1730740232200,-261.19078607,0.000299,2]
[341276442,1730740232209,-15236.25,0.0003,2]
[341276443,1730740232218,-557.98,0.0003,2]
[341276444,1730740232227,-157.77,0.00030466,2]
[341276445,1730740232236,-22923.76,0.00031121,2]
[341276446,1730740232245,-163.15,0.00031141,120]
[341276447,1730740232254,-150.0,0.00031145,7]
[341276448,1730740232263,-1000.0,0.00031162,2]
[341276449,1730740232273,-2523.71,0.00031204,120]
[341276450,1730740232283,-181.12,0.00031223,2]
[341276451,1730740232292,-250.0,0.00031262,2]
[341276452,1730740232301,-245.71,0.00031331,2]
[341276453,1730740232310,-453.42,0.00031344,2]
[341276454,1730740232319,-295.28,0.00031377,2]
[341276455,1730740232330,-8637.51,0.0003141,4]
[341276456,1730740232341,-2220.45,0.0003143,2]
[341276457,1730740232350,-177.37,0.00031521,30]
[341276458,1730740232359,-166.31,0.00031548,2]
[341276459,1730740232369,-157.77,0.00031608,2]
[341276461,1730740232378,-400.08,0.00031674,2]
[341276462,1730740232387,-182.14,0.00031806,2]
[341276464,1730740232396,-500.0,0.000321,30]
[341276465,1730740232405,-157.02,0.00032191,2]
[341276466,1730740232414,-157.02,0.0003222,2]
[341276467,1730740232423,-167.0,0.00032234,2]
[341276468,1730740232432,-157.02,0.00032249,2]
[341276470,1730740232441,-157.02,0.00032279,2]
[341276472,1730740232450,-175.33,0.00032287,120]
[341276474,1730740232459,-157.02,0.00032308,2]
[341276476,1730740232468,-157.02,0.00032337,2]
[341276478,1730740232477,-157.02,0.00032366,2]
[341276480,1730740232486,-444.47,0.00032378,10]
[341276481,1730740232496,-162.13,0.00032388,2]
[341276482,1730740232505,-157.02,0.00032396,2]
[341276483,1730740232514,-157.02,0.00032425,2]
[341276484,1730740232524,-157.02,0.00032454,2]
[341276485,1730740232534,-157.02,0.00032483,2]
[341276486,1730740232543,-157.02,0.00032513,2]
[341276487,1730740232552,-3843.20680074,0.0003259,2]
[341276488,1730740232562,-3843.20680073,0.00032683,2]
[341276489,1730740232571,-150.0,0.0003269,2]
[341276490,1730740232580,-157.77,0.00032751,2]
[341276491,1730740232590,-29299.5918,0.00032776,2]
[341276508,1730740232783,-1731.28255454,0.00032776,15]
[341276510,1730740232793,-3843.20680073,0.00032776,2]
[341276512,1730740232802,-301.86822723,0.00032776,2]
[341276514,1730740232812,-700.0,0.000328,11]
[341276516,1730740232821,-500.0,0.00032873,5]
[341276518,1730740232831,-500.0,0.00032873,2]
[341276520,1730740232840,-500.0,0.00032875,2]
[341276521,1730740232849,-500.0,0.00032875,2]
[341276522,1730740232859,-519.64492875,0.00032875,2]
[341276523,1730740232868,-500.0,0.00032875,2]
[341276524,1730740232877,-204.07236524,0.00032876,2]
[341276525,1730740232887,-558.36757297,0.00032876,2]
[341276526,1730740232897,-500.0,0.00032876,2]
[341276527,1730740232906,-611.83047292,0.00032876,2]
[341276528,1730740232915,-500.0,0.00032876,2]
[341276529,1730740232925,-549.21468946,0.00032876,2]